Cogmind - Beta 13 X1 @@@ ROGUE MODE // 2023.10.20 @ 23:33:06 Player: Plexion Result: Destroyed by 7V-RTL with Dispersion Rifle Performance ------------- Evolutions (1) 500 Regions Visited (6) 1200 Robots Destroyed (85) 425 Value Destroyed (1405) 1405 Prototype IDs (7) 140 Alien Tech Used (0) 0 Bonus (64) 64 TOTAL SCORE: 3734 Bonus ------- High Alert Combat Kills 64 Cogmind --------- Core Integrity 0/400 Matter 71/300 Energy 250/250 System Corruption 0% Temperature Cool (9) Movement Core (1050) Ox20 Location -8/Mines Parts ------- > --- POWER (1) -------- Ion Engine > --- PROPULSION (3) --- (None) > --- UTILITY (3) ------ High-capacity Storage Unit Improved Armor Integrity Analyzer Advanced Powered Armor > --- WEAPON (2) ------- Katana > --- INVENTORY (20) --- Reinforced Fission Core High-capacity Matter Pod (200) Experimental Sensor Array Advanced Component Analysis Suite System Purifier Grenade Launcher Rocket Launcher Peak State ------------ > --- POWER ------------ Light Neutrino Core > --- PROPULSION ------- Light Treads Improved Treads Improved Treads > --- UTILITY ---------- High-capacity Storage Unit Makeshift Salvage Targeting Computer System Purifier > --- WEAPON ----------- Improved Assault Rifle Improved Assault Rifle > --- INVENTORY -------- Ion Engine Heavy Ion Engine Reinforced Fission Core Improved Treads Improved Treads Improved Treads Medium Matter Pod High-capacity Matter Pod Improved Armor Integrity Analyzer Light Armor Plating Light Armor Plating Light Armor Plating Light Armor Plating Advanced Component Analysis Suite Heavy Assault Rifle Heavy Assault Rifle Improved Assault Rifle Grenade Launcher Rocket Launcher Katana [Rating: 37] Favorites ----------- Power Heavy Ion Engine Engine Heavy Ion Engine Power Core Reinforced Fission Core Propulsion Light Treads Treads Light Treads Utility High-capacity Storage Unit Device Experimental Sensor Array Storage High-capacity Storage Unit Processor Targeting Computer Protection Light Armor Plating Weapon Improved Light Cannon Energy Gun Small Laser Ballistic Gun Improved Assault Rifle Ballistic Cannon Improved Light Cannon Launcher Rocket Launcher Special Weapon Plasma Cutter Slashing Weapon Katana Build | -11 -10 -10 -9 -9 -9 -8 ------- Run | Jun Mat Min Mat Min Exi Min Slots Evolved 2 | . . . 2 . . . Power . | . . . . . . . Propulsion 1 | . . . 1 . . . Utility 1 | . . . 1 . . . Weapon . | . . . . . . . Parts Attached 78 | 6 10 3 17 5 23 14 Power 8 | 1 . 1 2 . 2 2 Engine 6 | 1 . 1 2 . . 2 Core 2 | . . . . . 2 . Reactor . | . . . . . . . Propulsion 20 | 2 . . 9 . 6 3 Treads 20 | 2 . . 9 . 6 3 Leg . | . . . . . . . Wheel . | . . . . . . . Hover . | . . . . . . . Flight . | . . . . . . . Utility 23 | 1 4 . 3 3 7 5 Device 3 | . . . . 1 2 . Storage 3 | 1 2 . . . . . Processor 4 | . 2 . . . 1 1 Hackware . | . . . . . . . Protection 13 | . . . 3 2 4 4 Artifact . | . . . . . . . Weapon 27 | 2 6 2 3 2 8 4 Energy Gun 1 | 1 . . . . . . Energy Cannon . | . . . . . . . Ballistic Gun 13 | 1 2 . 1 2 4 3 Ballistic Cannon 5 | . 3 1 1 . . . Launcher 5 | . 1 1 1 . 2 . Special Weapon 1 | . . . . . 1 . Impact Weapon . | . . . . . . . Slashing Weapon 2 | . . . . . 1 1 Piercing Weapon . | . . . . . . . Special Melee Weapon . | . . . . . . . Unidentified Prototypes 7 | . 1 . 2 1 3 . Parts Lost 24 | . . 1 2 . 4 17 Power 3 | . . 1 . . . 2 Propulsion 9 | . . . 1 . 2 6 Utility 5 | . . . . . 1 4 Weapon 7 | . . . 1 . 1 5 Highest Loss Streak 17 | . . 1 1 . 3 17 To Critical Strikes 2 | . . . . . 2 . Average Slot Usage (%) 98 | . 99 99 99 100 99 82 Engine 10 | . 14 13 11 11 6 3 Core 1 | . . . . . 4 7 Treads 30 | . 28 28 32 33 32 23 Storage 12 | . 14 14 11 11 11 11 Processor 12 | . 13 14 11 11 11 11 Protection 6 | . . . 11 11 10 8 Ballistic Gun 8 | . . . 5 11 21 12 Ballistic Cannon 14 | . 26 27 16 10 . . Naked Turns . | . . . . . . . Heaviest Build 71 | 10 51 53 59 58 71 60 Greatest Support 69 | 40 40 40 69 69 69 69 Greatest Overweight (x) 1 | . 1 1 1 . 1 1 Average Overweight (x) . | . . 1 . . . . Largest Inventory Capacity 20 | 8 20 20 20 20 20 20 Average Capacity 18 | 6 12 20 20 20 20 20 Most Carried 20 | 2 13 14 20 20 20 19 Average Carried 15 | 1 8 13 17 19 18 12 Final Capacity 20 | 8 20 20 20 20 20 20 Final Carried 20 | 2 13 14 20 19 19 7 Class Distribution -------------------- 96% | Mutant 3% | Scavenger-Mutant Dominant Class ---------------- Mutant | -10/Materials Mutant | -10/Mines Mutant | -9/Materials Mutant | -9/Mines Mutant | -9/Exiles Mutant | -8/Mines Resources | -11 -10 -10 -9 -9 -9 -8 ----------- Run | Jun Mat Min Mat Min Exi Min Matter Collected 2933 | 164 363 335 674 76 1321 . Remotely . | . . . . . . . Salvage Created 2191 | . 286 190 1012 101 602 . Parts 206 | . 32 18 77 10 69 . Haulers Intercepted 6 | . 2 . 4 . . . Recyclers Shooed . | . . . . . . . Parts Field Recycled . | . . . . . . . Retrieved Matter . | . . . . . . . Parts Self-Destructed . | . . . . . . . Prevented . | . . . . . . . Kills | -11 -10 -10 -9 -9 -9 -8 ------- Run | Jun Mat Min Mat Min Exi Min Combat Hostiles Destroyed 58 | . 11 9 26 7 5 . Guns 12 | . . . 4 5 3 . Cannons 33 | . 8 4 19 2 . . AOE 13 | . 3 5 3 . 2 . Classes Destroyed 15 | . 7 1 4 . 3 . Worker 3 | . 1 . 1 1 . . Builder 2 | . 1 1 . . . . Tunneler 1 | . . 1 . . . . Hauler 6 | . 2 . 4 . . . Recycler 3 | . 1 1 1 . . . Operator 2 | . . . 2 . . . Turret 1 | . . . . . 1 . Watcher 3 | . 2 . 1 . . . Swarmer 32 | . 9 7 9 7 . . Grunt 10 | . 2 2 6 . . . Brawler 1 | . . . 1 . . . Duelist 1 | . . . 1 . . . Sentry 9 | . . . 9 . . . Zionite 8 | . . . . . 8 . Assembled 4 | . . . . . 4 . Best Kill Streak 5 | . 5 4 5 4 3 . Combat Bots Only 5 | . 5 4 4 4 2 . Max Kills in Single Turn 2 | . 2 2 2 1 1 . Gunslinging . | . . . . . . . Exploded 2 | . 1 2 2 . 1 . Melee . | . . . . . . . Uniques/NPCs Destroyed 4 | . . . . . 4 . 8R-AWN (-9/Exiles) EX-BIN (-9/Exiles) EX-DEC (-9/Exiles) EX-HEX (-9/Exiles) Combat | -11 -10 -10 -9 -9 -9 -8 -------- Run | Jun Mat Min Mat Min Exi Min Damage Taken 4894 | . 228 167 481 130 1217 2671 Core 464 | . 26 15 59 10 111 243 Absorbed by Shields . | . . . . . . . Core Remaining (%) 91 | 100 . 83 . . . . Volleys Fired 243 | . 33 21 61 9 90 29 Largest 2 | . 2 2 2 2 2 2 Hottest 78 | . 78 78 78 62 46 46 Shots Fired 455 | . 63 34 120 18 162 58 Gun 240 | . . . 29 9 144 58 Cannon 184 | . 60 26 89 9 . . Launcher 28 | . 3 8 2 . 15 . Special 3 | . . . . . 3 . Kinetic 424 | . 60 26 118 18 144 58 Thermal . | . . . . . . . Explosive 28 | . 3 8 2 . 15 . Electromagnetic . | . . . . . . . Impact 3 | . . . . . 3 . Robot Hit Streak 67 | . 5 3 11 10 42 67 Robot Miss Streak 3 | . 3 3 3 1 2 1 Penetration Max . | . . . . . . . Secondary Targets 1 | . . . . . 1 . Max Gunslinging Chain 1 | . . . . . 1 . Shots Hit Robots 346 | . 31 15 75 10 123 92 Core Hits 159 | . 21 12 43 8 47 28 Critical Kills . | . . . . . . . Critical Parts Destroyed 1 | . . . . . 1 . Critical Strikes 8 | . . 2 . . 2 4 Destroy 1 | . . . . . 1 . Blast 2 | . . 2 . . . . Sever 5 | . . . . . 1 4 Melee Attacks 43 | . . . . . 2 41 Impact . | . . . . . . . Slashing 43 | . . . . . 2 41 Piercing . | . . . . . . . Sneak Attacks . | . . . . . . . Combat Hostiles . | . . . . . . . Follow-up Attacks . | . . . . . . . Damage Inflicted 7527 | . 866 546 1765 190 2221 1939 Guns 3063 | . . . 313 101 1803 846 Cannons 2283 | . 664 279 1251 89 . . Explosions 1036 | . 198 257 195 . 386 . Melee 1093 | . . . . . . 1093 Ramming 20 | . 4 10 6 . . . Kinetic 5346 | . 664 279 1564 190 1803 846 Thermal . | . . . . . . . Explosive 1036 | . 198 257 195 . 386 . Electromagnetic . | . . . . . . . Impact 32 | . . . . . 32 . Slashing 1093 | . . . . . . 1093 Piercing . | . . . . . . . Highest Corruption . | . . . . . . . Average Corruption . | . . . . . . . Corruption Purged . | . . . . . . . Corruption Blocked . | . . . . . . . Overload Shots . | . . . . . . . Overflow Damage 52 | . 2 27 23 . . . Projectiles 25 | . 2 1 22 . . . Explosions 27 | . . 26 1 . . . Melee . | . . . . . . . Knockbacks 13 | . 5 2 6 . . . Impact . | . . . . . . . Kinetic 12 | . 4 2 6 . . . Secondary 1 | . 1 . . . . . Self-Inflicted Damage 135 | . 44 68 . . 23 . Shots 5 | . 2 2 . . 1 . Rammed 9 | . 3 3 3 . . . Targets Rammed 11 | . 3 4 4 . . . Kicked . | . . . . . . . Crushed 2 | . . 1 1 . . . Highest Temperature 148 | . 120 90 148 15 66 22 Average Temperature 24 | . 39 30 27 6 19 8 Received Heat Transfer 693 | . 24 . 120 . . 549 Siege Activations . | . . . . . . . Robots Corrupted . | . . . . . . . Combat Hostiles . | . . . . . . . Parts Fried . | . . . . . . . Impact Corruptions . | . . . . . . . Robots Melted . | . . . . . . . Combat Hostiles . | . . . . . . . Parts Melted . | . . . . . . . Heat Transferred . | . . . . . . . Parts Sabotaged . | . . . . . . . Parts Stolen . | . . . . . . . Parts Stripped . | . . . . . . . Power Chain Reactions . | . . . . . . . Missiles Intercepted . | . . . . . . . Alert | -11 -10 -10 -9 -9 -9 -8 ------- Run | Jun Mat Min Mat Min Exi Min Peak Influence 599 | . 192 234 599 260 . . Initial 189 | . . 66 1 189 . . Average 157 | . 60 108 333 182 . . Maximum Alert Level 2 | . . 1 2 1 . . Low Security (%) 71 | 100 100 85 19 75 . 100 Level 1 17 | . . 14 37 24 . . Level 2 10 | . . . 42 . . . Level 3 . | . . . . . . . Level 4 . | . . . . . . . Level 5 . | . . . . . . . High Security . | . . . . . . . Max Security . | . . . . . . . Squads Dispatched 5 | . 2 . 3 . . . Investigation . | . . . . . . . Extermination . | . . . . . . . Reinforcement 4 | . 2 . 2 . . . Assault 1 | . . . 1 . . . Garrison . | . . . . . . . Intercept . | . . . . . . . Searches Triggered . | . . . . . . . Construction Impeded . | . . . . . . . Haulers Reinforced . | . . . . . . . Active Scanning Responses . | . . . . . . . Cargo Convoy Interrupts . | . . . . . . . Stealth | -11 -10 -10 -9 -9 -9 -8 --------- Run | Jun Mat Min Mat Min Exi Min Distress Signals 5 | . 3 . 2 . . . Communications Jammed . | . . . . . . . Distress Signals . | . . . . . . . Times Spotted 100 | . 17 11 39 7 25 1 Peak Tracking Total 9 | . 4 3 6 4 9 1 Tactical Retreats 9 | . . 3 2 . 4 . Traps | -11 -10 -10 -9 -9 -9 -8 ------- Run | Jun Mat Min Mat Min Exi Min Traps Triggered . | . . . . . . . Indirectly . | . . . . . . . Trap Hack Attempts . | . . . . . . . Triggered . | . . . . . . . Disarmed . | . . . . . . . Reprogrammed . | . . . . . . . Reused . | . . . . . . . Traps Extracted . | . . . . . . . Installed . | . . . . . . . Triggered . | . . . . . . . Machines | -11 -10 -10 -9 -9 -9 -8 ---------- Run | Jun Mat Min Mat Min Exi Min Machines Disabled 9 | . . . 3 . 6 . Max in Single Turn 2 | . . . 1 . 2 . Machines Repaired . | . . . . . . . Machines Sabotaged . | . . . . . . . Overloaded Fab Kills . | . . . . . . . Hacking | -11 -10 -10 -9 -9 -9 -8 --------- Run | Jun Mat Min Mat Min Exi Min Machines Accessed 7 | . 3 . 3 . 1 . Terminals 5 | . 2 . 3 . . . Fabricators . | . . . . . . . Repair Stations . | . . . . . . . Recycling Units 1 | . 1 . . . . . Scanalyzers . | . . . . . . . Garrison Access . | . . . . . . . Total Hacks 16 | . 8 . 7 . 1 . Successful 9 | . 4 . 4 . 1 . Failed 7 | . 4 . 3 . . . Catastrophic 3 | . 2 . 1 . . . Database Lockouts . | . . . . . . . Manual 13 | . 5 . 8 . . . Terminals 12 | . 5 . 7 . . . Fabricators . | . . . . . . . Repair Stations . | . . . . . . . Recycling Units 3 | . 3 . . . . . Scanalyzers . | . . . . . . . Garrison Access . | . . . . . . . Terminal Hacks 7 | . 2 . 4 . 1 . Record 1 | . . . . . 1 . Robot Analysis 3 | . 2 . 1 . . . Locate Traps 1 | . . . 1 . . . Hauler Manifests 1 | . . . 1 . . . Zone Layout 1 | . . . 1 . . . Fabricator Hacks . | . . . . . . . Repair Station Hacks . | . . . . . . . Recycling Unit Hacks 2 | . 2 . . . . . Retrieve Matter 2 | . 2 . . . . . Scanalyzer . | . . . . . . . Garrison Access Hacks . | . . . . . . . Unauthorized Hacks . | . . . . . . . Terminals . | . . . . . . . Fabricators . | . . . . . . . Repair Stations . | . . . . . . . Recycling Units . | . . . . . . . Scanalyzers . | . . . . . . . Garrison Access . | . . . . . . . Data Cores Recovered 1 | . . . 1 . . . Used 1 | . . . 1 . . . Hacking Detections 6 | . 3 . 3 . . . Full Trace Events . | . . . . . . . Feedback Events . | . . . . . . . Feedback Blocked . | . . . . . . . Robot Schematics Acquired . | . . . . . . . Robots Built . | . . . . . . . Authchips . | . . . . . . . Time . | . . . . . . . Total Robot Build Rating . | . . . . . . . Part Schematics Acquired . | . . . . . . . Parts Built . | . . . . . . . Authchips . | . . . . . . . Time . | . . . . . . . Total Part Build Rating . | . . . . . . . Parts Repaired . | . . . . . . . Time . | . . . . . . . Parts Recycled . | . . . . . . . Recycled Matter . | . . . . . . . Retrieved Matter . | . . . . . . . Retrieved Components . | . . . . . . . Parts Scanalyzed . | . . . . . . . Part Schematics Acquired . | . . . . . . . Parts Damaged . | . . . . . . . Bothacking | -11 -10 -10 -9 -9 -9 -8 ------------ Run | Jun Mat Min Mat Min Exi Min Used RIF Installer . | . . . . . . . Robots Hacked . | . . . . . . . Non-combat . | . . . . . . . Combat . | . . . . . . . Robot Hacks Applied . | . . . . . . . Relay Couplers Released . | . . . . . . . Fabnet Peak Effective % . | . . . . . . . Robots Rewired . | . . . . . . . Allies Hacked . | . . . . . . . Hacks Repelled . | . . . . . . . Allies | -11 -10 -10 -9 -9 -9 -8 -------- Run | Jun Mat Min Mat Min Exi Min Total Allies 2 | . . . . 2 . . Largest Group 2 | . . . . 2 2 . Highest-Rated Group 41 | . . . . 41 41 . Highest-Rated Ally 31 | . . . . 31 31 . Total Orders . | . . . . . . . Ally Attacks . | . . . . . . . Total Damage . | . . . . . . . Kills . | . . . . . . . Allies Corrupted . | . . . . . . . Allies Melted . | . . . . . . . Intel | -11 -10 -10 -9 -9 -9 -8 ------- Run | Jun Mat Min Mat Min Exi Min Robot Analysis Total 3 | . 2 . 1 . . . Derelict Logs Recovered 2 | . . 1 . 1 . . Drone Launches . | . . . . . . . Drone Recoveries . | . . . . . . . Exploration | -11 -10 -10 -9 -9 -9 -8 ------------- Run | Jun Mat Min Mat Min Exi Min Turns Passed 6671 | 78 1127 1386 1225 801 1770 284 Spaces Moved 3079 | 44 559 549 609 477 820 21 Core 2 | 2 . . . . . . Treads 3077 | 42 559 549 609 477 820 21 Legs . | . . . . . . . Wheels . | . . . . . . . Hover . | . . . . . . . Flight . | . . . . . . . Fastest Speed 50 | 50 160 240 160 160 160 160 Average Speed 180 | 155 176 240 160 160 173 163 Slowest Speed 240 | 160 240 240 240 160 240 240 Overloaded Moves . | . . . . . . . Propulsion Burnouts . | . . . . . . . Robots Hopped . | . . . . . . . Cave-ins Triggered . | . . . . . . . Exploration Rate (%) 60 | 4 75 99 63 95 78 7 Regions Visited 6 Branch Regions 4 Pre-discovered Areas 2 | . . 1 . . 1 . Known Exits Taken 1 | . . . . 1 . . Unknown Exits Taken 5 | 1 1 1 1 . 1 . Scrap Searched 2 | . . 1 . 1 . . Spaces Dug 5 | . 5 . . . . . Terrain Destroyed 146 | . 29 86 12 1 18 . Melee . | . . . . . . . Projectile 10 | . 5 3 1 1 . . AOE 136 | . 24 83 11 . 18 . Terrain Rammed . | . . . . . . . Walls Destroyed . | . . . . . . . Machines Disabled . | . . . . . . . Actions | -11 -10 -10 -9 -9 -9 -8 --------- Run | Jun Mat Min Mat Min Exi Min Total 3660 | 51 637 578 751 498 995 150 Wait 112 | . 11 . 23 2 31 45 Move 3073 | 43 558 548 608 476 819 21 Hop . | . . . . . . . Pick Up 47 | 2 11 2 17 2 13 . Fast Attach 21 | 6 6 . 3 . 4 2 Attach 21 | . . 1 3 1 5 11 Detach 11 | . 5 . 2 . 4 . Swap 36 | . 4 2 11 4 14 1 Drop 42 | . 6 . 19 4 13 . Fire 243 | . 33 21 61 9 90 29 Melee 43 | . . . . . 2 41 Ram . | . . . . . . . Kick . | . . . . . . . Crush 11 | . 3 4 4 . . . Escape Stasis . | . . . . . . . Rewire . | . . . . . . . Trap . | . . . . . . . Miscellaneous . | . . . . . . . Route ------- -11/Junkyard -10/Materials (discovered 3 exits: *Mat x2 / [*Min]) -10/Mines (discovered 2 exits: *Mat x2) -9/Materials (discovered 4 exits: [*Mat x2] / [*Min] / [*Sto]) -9/Mines (discovered 4 exits: [*Mat x2] / *Exi / [*Zio]) -9/Exiles -8/Mines History --------- Turn | Location | Event 23 | -11/Junkyard | Discovered new exit (range 15) 79 | -11/Junkyard | Entered Materials 276 | -10/Materials | Discovered new exit (range 13) 333 | -10/Materials | Build established: Mutant 723 | -10/Materials | Discovered new exit (range 5) 1013 | -10/Materials | Discovered new exit (range 13) 1206 | -10/Materials | Entered Mines 1243 | -10/Mines | Learned Materials terminal intel 1414 | -10/Mines | Discovered new exit (range 9) 1615 | -10/Mines | Received a Rocket Launcher from a helpful Derelict 2011 | -10/Mines | Discovered new exit (range 5) 2012 | -10/Mines | Learned location of Storage (-9) 2592 | -10/Mines | Entered Materials 2592 | -9/Materials | Evolved 2 slots: Propulsion x1, Utility x1 2593 | -9/Materials | Loaded intel: 12 terminal locations 3441 | -9/Materials | Discovered new exit (range 5) 3463 | -9/Materials | Discovered new exit (range 16) 3697 | -9/Materials | Discovered new exit (range 3) 3792 | -9/Materials | First assault squad dispatched 3793 | -9/Materials | Discovered new exit (range 16) 3817 | -9/Materials | Entered Mines 3818 | -9/Mines | A Derelict revealed a hidden shortcut to a safe place 3898 | -9/Mines | Assembled infested the area 3943 | -9/Mines | Identified exit to Exiles 3948 | -9/Mines | Found a damaged Exp. Sensor Array with a note attached 3952 | -9/Mines | Found Prototype Device 3962 | -9/Mines | Identified Exp. Sensor Array 4001 | -9/Mines | Met 8R-AWN 4169 | -9/Mines | Discovered new exit (range 8) 4301 | -9/Mines | Discovered new exit (range 10) 4417 | -9/Mines | Found a hidden stash of uninstalled traps 4618 | -9/Mines | Entered Exiles 4618 | -9/Exiles | Accompanied by 2 allies 4648 | -9/Exiles | Led the pair of lost Derelicts to a safe place 4658 | -9/Exiles | Welcomed by 8R-AWN 4681 | -9/Exiles | Met EX-HEX 4765 | -9/Exiles | Met EX-DEC 4795 | -9/Exiles | Learned location of Zion (-7) 4888 | -9/Exiles | Discovered new exit (range 12) 4975 | -9/Exiles | Met EX-BIN 5229 | -9/Exiles | Learned about 8R-AWN's background 5406 | -9/Exiles | Attacked by the Exiles 5574 | -9/Exiles | Lost 3 parts (1n1u1w) 5598 | -9/Exiles | Destroyed 8R-AWN 5987 | -9/Exiles | Destroyed EX-BIN 6004 | -9/Exiles | Destroyed EX-DEC 6028 | -9/Exiles | Destroyed EX-HEX 6130 | -9/Exiles | Found Prototype Device 6130 | -9/Exiles | Identified System Purifier 6388 | -9/Exiles | Entered Mines 6461 | -8/Mines | 7V-RTL came to Exiles' defense 6528 | -8/Mines | Core integrity fell below 50% 6588 | -8/Mines | Found Adv. Powered Armor 6622 | -8/Mines | Core integrity fell below 20% 6649 | -8/Mines | Lost 17 parts (2p6n4u5w) 6672 | -8/Mines | Destroyed by 7V-RTL with Dispersion Rifle Last Messages --------------- 06583_ Acquired Lgt. Ion Engine. 06588_ Acquired Adv. Powered Armor. 06588_ Imp. Treads destroyed. 06597_ Critical hit (Destroy). 06599_ U-05 Engineer builds a Wall. 06603_ Penetrated by Slug. 06605_ U-05 Engineer builds a Wall. 06609_ Penetrated by Slug. 06609_ Slug penetrates Wall. 06609_ Imp. Treads destroyed. 06611_ U-05 Engineer builds a Wall. 06615_ Penetrated by Slug. 06616_ U-05 Engineer builds a Wall. 06618_ Penetrated by Slug. 06618_ Lgt. Ion Engine destroyed. 06618_ U-05 Engineer suffers critical hit (Destroy). 06624_ Slug penetrates R-06 Scavenger. 06624_ Slug penetrates Wall. 06640_ 7V-RTL Railgun severed. 06641_ U-05 Engineer builds a Wall. Map ----- +----------------------------------------------------+ | ????????????????????????????? | | ????????????????????????????? | | ????????????????????????????? | | ????????????????????????????? | | ????????????????????????????? | | ????????????????????????????? | | ????????????????????????????? | | ????????????????????????????? | | ????????????????????????????? | | ????????????????????????????? | | ????????????????????????????? | | ????????????????????????????? | | ??????????????????????###???? | | ?????????????? ?????? ???? | | ??????????????? ????? ???? | | ???????????????? ????# ???? | | ????????????????# ???# ???? | | ????????????????? #??# ###? | | ?????????????????? ;### ;#? | | ???????????????????# # #? | | ????????????????????#; #? | | ????????????????????? #? | | ?????????????????????## #? | | ??????????????###????##!% #? | | ?????????????## ######=% !#? | | ????????????## ## ;;!@Y#? | | ????????????# #######[#? | | ????????????# #"## #? | | ????????????## ### #? | | ?????????????## #? | | ??????????????#### ######? | | ?????????????????## ##?????? | | ??????????????????# #??????? | | ??????????????????# #??????? | | ??????????????????# #??????? | | ?????????????????? #??????? | | ?????????????????#####??????? | | ????????????????????????????? | | ????????????????????????????? | | ????????????????????????????? | | ????????????????????????????? | | ????????????????????????????? | | ????????????????????????????? | | ????????????????????????????? | | ????????????????????????????? | | ????????????????????????????? | | ????????????????????????????? | | ????????????????????????????? | | ????????????????????????????? | | ????????????????????????????? | +----------------------------------------------------+ Best States ------------- Heat Dissipation 28 Energy Generation 19 Energy Capacity 310 Matter Stores 300 Matter Capacity 300 Sight Range 18 Terrain Scan Density 10 Armor Coverage 400 Evasion (%) 40 Targeting Accuracy 5 Armor Integrity Analysis 40 Recoil Reduction 3 Salvage Targeting 4 Item Schematics ----------------- None Robot Schematics ------------------ None Fabricated ------------ Nothing Alien Tech Used ----------------- None Achievements -------------- None Challenges ------------ None Game ------ Seed OmegaNodeTerrabomb Manual? 0 Play Time 00:28:30 Cumulative 451.1 hours Start 2023.10.20 @ 23:07:00 End 2023.10.20 @ 23:33:06 Sessions 1 Manual Loads 0 Difficulty Rogue Special Mode None Game No. 526 Rogue 439 Adventurer 87 Explorer 0 Win Type - Total 25 Types 8/0/14/1/1/0/1/0/0 Lore% 89 Gallery% 92 Achievement% 76 Wizard Run 0 Options --------- ASCII 0 Keyboard 1 Movement Numpad Keybinds 0 Fullscreen 1 Font 18/SmallcapsGlow Map View 76x50 Tactical HUD 1 Map Filters NONE Filters NONE Steam 1 RUN: 4c672eaf-9be9-464d-a61c-1ac612420153